fUST/lending_fUST_20251203
["ID","MTS","AMOUNT","RATE_DAILY","PERIOD"]
[395442878,1764691831927,-401.836,8.097e-05,2]
[395442880,1764691831937,-123.048432,8.097e-05,2]
[395442882,1764691831948,-94.951568,8.097e-05,2]
[395442884,1764691831958,-312.90431765,8.097e-05,2]
[395442886,1764691831968,-193.8118857,8.097e-05,2]
[395442888,1764691831977,-524.30814243,8.159e-05,2]
[395442891,1764691831988,-675.69185757,8.159e-05,2]
[395442893,1764691831997,-1200.0,8.16e-05,2]
[395442895,1764691832006,-300.0,8.16e-05,2]
[395442897,1764691832016,-300.0,8.16e-05,2]
[395442899,1764691832026,-185.16658988,8.161e-05,2]
[395442903,1764691832037,-500.0,8.161e-05,2]
[395442906,1764691832046,-500.0,8.161e-05,2]
[395442907,1764691832055,-221.45928946,8.161e-05,2]
[395442910,1764691832064,-635.9487571,8.161e-05,2]
[395442913,1764691832073,-500.0,8.161e-05,2]
[395442916,1764691832084,-500.0,8.161e-05,2]
[395442919,1764691832093,-500.0,8.161e-05,2]
[395442922,1764691832102,-31.27251359,8.161e-05,2]
[395442968,1764691837943,-468.72748641,8.161e-05,2]
[395442970,1764691837952,-500.0,8.161e-05,2]
[395442972,1764691837961,-305.7125084,8.161e-05,2]
[395443186,1764691840066,-194.2874916,8.161e-05,2]
[395443188,1764691840076,-39707.6847774,8.162e-05,2]
[395443190,1764691840091,-3639.31539135,8.162e-05,2]
[395443728,1764691846025,-17871.88673311,8.162e-05,2]
[395443730,1764691846132,-33972.88124381,8.162e-05,2]
[395443731,1764691846142,-181.20250938,8.219e-05,2]
[395443732,1764691846152,-500.0,8.219e-05,2]
[395443733,1764691846161,-10653.3650519,8.298e-05,2]
[395443734,1764691846171,-196.2505799,8.298e-05,2]
[395443735,1764691846181,-423.4657212,8.298e-05,2]
[395443736,1764691846191,-1680.0,8.975e-05,2]
[395443737,1764691846201,-1680.0,8.977e-05,2]
[395443738,1764691846211,-420.0,8.977e-05,2]
[395443739,1764691846220,-420.0,8.977e-05,2]
[395443740,1764691846231,-184.2872394,9.245e-05,2]
[395443741,1764691846240,-2377.0870501,9.288e-05,2]
[395443742,1764691846250,-530.3998141,9.509e-05,2]
[395443744,1764691846260,-990.0,9.606e-05,2]
[395443746,1764691846270,-631.0,9.606e-05,2]
[395443748,1764691846280,-2154.0,9.606e-05,2]
[395443750,1764691846290,-279.0,9.872e-05,2]
[395443752,1764691846299,-300.0,9.874e-05,2]
[395443753,1764691846309,-369.22709483,0.00010097,2]
[395443754,1764691846319,-250.0,0.00010098,2]
[395443755,1764691846328,-353.75427879,0.00010776,2]
[395443756,1764691846346,-999.0,0.00010959,2]
[395443757,1764691846356,-500.0,0.00010959,2]
[395443758,1764691846366,-500.0,0.00010959,2]
[395443759,1764691846375,-500.0,0.00010959,2]
[395443760,1764691846387,-500.0,0.00010959,2]
[395443761,1764691846396,-500.0,0.00010959,2]
[395443763,1764691846406,-500.0,0.00010959,2]
[395443765,1764691846416,-500.0,0.00010959,2]
[395443767,1764691846426,-500.0,0.00010959,2]
[395443769,1764691846437,-500.0,0.00010959,2]
[395443771,1764691846446,-500.0,0.00010959,2]
[395443773,1764691846455,-500.0,0.00010959,2]
[395443775,1764691846464,-500.0,0.00010959,2]
[395443777,1764691846474,-500.0,0.00010959,2]
[395443779,1764691846484,-500.0,0.00010959,2]
[395443781,1764691846493,-500.0,0.00010959,2]
[395443783,1764691846503,-500.0,0.00010959,2]
[395443784,1764691846520,-500.0,0.00010959,2]
[395443787,1764691846531,-500.0,0.00010959,2]
[395443788,1764691846542,-500.0,0.00010959,2]
[395443790,1764691846551,-500.0,0.00010959,2]
[395443792,1764691846561,-500.0,0.00010959,2]
[395443794,1764691846570,-500.0,0.00010959,2]
[395443796,1764691846580,-500.0,0.00010959,2]
[395443798,1764691846591,-500.0,0.00010959,2]
[395443800,1764691846600,-500.0,0.00010959,2]
[395443802,1764691846609,-500.0,0.00010959,2]
[395443804,1764691846619,-500.0,0.00010959,2]
[395443806,1764691846629,-500.0,0.00010959,2]
[395443808,1764691846639,-500.0,0.00010959,2]
[395443810,1764691846648,-500.0,0.00010959,2]
[395443812,1764691846657,-500.0,0.00010959,2]
[395443814,1764691846666,-500.0,0.00010959,2]
[395443816,1764691846676,-500.0,0.00010959,2]
[395443818,1764691846686,-500.0,0.00010959,2]
[395443820,1764691846695,-500.0,0.00010959,2]
[395443822,1764691846704,-500.0,0.00010959,2]
[395443824,1764691846713,-500.0,0.00010959,2]
[395443826,1764691846723,-500.0,0.00010959,2]
[395443828,1764691846732,-192.11040696,0.00010959,2]
[395443830,1764691846741,-500.0,0.00010959,2]
[395443832,1764691846750,-500.0,0.00010959,2]
[395443834,1764691846760,-500.0,0.00010959,2]
[395443836,1764691846769,-500.0,0.00010959,2]
[395443838,1764691846778,-500.0,0.00010959,2]
[395443839,1764691846787,-500.0,0.00010959,2]
[395443842,1764691846797,-500.0,0.00010959,2]
[395443844,1764691846806,-500.0,0.00010959,2]
[395443845,1764691846816,-500.0,0.00010959,2]
[395443848,1764691846827,-500.0,0.00010959,2]
[395443849,1764691846837,-500.0,0.00010959,2]
[395443852,1764691846847,-474.68366374,0.00010959,2]
[395443854,1764691846858,-350.0,0.00010959,2]
[395443856,1764691846867,-500.0,0.00010959,2]
[395443858,1764691846877,-500.0,0.00010959,2]
[395443860,1764691846887,-500.0,0.00010959,2]
[395443862,1764691846897,-500.0,0.00010959,2]
[395443864,1764691846907,-500.0,0.00010959,2]
[395443866,1764691846917,-500.0,0.00010959,2]
[395443868,1764691846928,-500.0,0.00010959,2]
[395443870,1764691846937,-500.0,0.00010959,2]
[395443872,1764691846947,-500.0,0.00010959,2]
[395443873,1764691846957,-500.0,0.00010959,2]
[395443875,1764691846967,-500.0,0.00010959,2]
[395443877,1764691846976,-500.0,0.00010959,2]
[395443879,1764691846985,-500.0,0.00010959,2]
[395443881,1764691846995,-500.0,0.00010959,2]
[395443883,1764691847004,-500.0,0.00010959,2]
[395443885,1764691847014,-500.0,0.00010959,2]
[395443887,1764691847023,-500.0,0.00010959,2]
[395443889,1764691847033,-500.0,0.00010959,2]
[395443891,1764691847043,-500.0,0.00010959,2]
[395443893,1764691847054,-500.0,0.00010959,2]
[395443895,1764691847064,-488.1443754,0.00010959,2]
[395443897,1764691847074,-500.0,0.00010959,2]
[395443899,1764691847083,-500.0,0.00010959,2]
[395443901,1764691847094,-500.0,0.00010959,2]
[395443903,1764691847104,-425.54987201,0.00012097,2]
[395443905,1764691847114,-151.59078118,0.00012182,2]
[395443907,1764691847125,-151.0,0.00012182,2]
[395443909,1764691847134,-151.0,0.00012182,2]
[395443911,1764691847144,-151.0,0.00012182,2]
[395443913,1764691847154,-200.54523682,0.00012182,2]
[395443915,1764691847166,-151.0,0.00012182,2]
[395443917,1764691847175,-151.0,0.00012182,2]
[395443919,1764691847185,-151.0,0.00012182,2]
[395443921,1764691847194,-151.0,0.00012182,2]
[395443922,1764691847203,-151.0,0.00012319,2]
[395443924,1764691847212,-151.0,0.00012319,2]
[395443926,1764691847221,-151.0,0.00012319,2]
[395443928,1764691847231,-151.0,0.00012319,2]
[395443930,1764691847240,-151.69926731,0.00012319,2]
[395443932,1764691847250,-151.49097699,0.00012319,2]
[395443934,1764691847260,-151.0,0.00012319,2]
[395443936,1764691847270,-387.89,0.00012356,2]
[395443938,1764691847280,-151.0,0.00012456,2]
[395443940,1764691847289,-151.0,0.00012456,2]
[395443942,1764691847299,-151.0,0.00012456,2]
[395443944,1764691847309,-151.0,0.00012456,2]
[395443945,1764691847319,-151.0,0.00012456,2]
[395443947,1764691847329,-151.0,0.000128,2]
[395443949,1764691847344,-3740.71162587,0.000129,2]
[395443951,1764691847355,-3740.71162587,0.000129,2]
[395443953,1764691847365,-500.0,0.00013273,2]
[395443955,1764691847374,-500.0,0.00013273,2]
[395443957,1764691847383,-1000.0,0.00013699,2]
[395443959,1764691847396,-1500.0,0.00013699,2]
[395443961,1764691847405,-501.23561388,0.00013699,2]
[395443963,1764691847415,-500.0,0.00013699,2]
[395443965,1764691847426,-500.0,0.00013699,2]
[395443967,1764691847436,-500.0,0.00013699,2]
[395443969,1764691847447,-500.0,0.00013699,2]
[395443971,1764691847456,-500.0,0.00013699,2]
[395443973,1764691847465,-500.0,0.00013699,2]
[395443975,1764691847476,-500.54711285,0.00013699,2]
[395443977,1764691847486,-160.0,0.00013699,2]
[395443979,1764691847496,-1000.0,0.00013699,2]
[395443981,1764691847507,-151.0,0.000137,2]
[395443983,1764691847518,-1000.0,0.00013821,2]
[395443984,1764691847528,-1000.0,0.00013821,2]
[395443986,1764691847540,-481.87264918,0.00014097,2]
[395443988,1764691847549,-500.0,0.00014247,2]
[395443990,1764691847559,-1000.0,0.00014247,2]
[395443992,1764691847569,-1001.0466406,0.00014247,2]
[395443994,1764691847579,-1000.0,0.00014247,2]
[395443996,1764691847592,-1000.0,0.00014247,2]
[395443998,1764691847602,-1000.0,0.00014247,2]
[395444000,1764691847612,-260.0,0.00014247,2]
[395444002,1764691847622,-1500.0,0.00014368,2]
[395444004,1764691847632,-501.31346727,0.00014368,2]
[395444006,1764691847642,-151.0,0.000146,2]
[395444008,1764691847652,-500.0,0.00014795,2]
[395444010,1764691847661,-500.76128652,0.00014795,2]
[395444011,1764691847671,-1500.0,0.00014795,2]
[395444013,1764691847680,-1500.0,0.00014795,2]
[395444015,1764691847690,-1500.0,0.00014795,2]
[395444017,1764691847699,-360.0,0.00014795,2]
[395444019,1764691847709,-2000.0,0.00014916,2]
[395444021,1764691847718,-201.93286099,0.00015015,2]
[395444023,1764691847727,-343.847925,0.00015068,2]
[395444025,1764691847737,-800.0,0.00015068,2]
[395444027,1764691847747,-460.0,0.00015342,2]
[395444029,1764691847756,-500.0,0.00015342,2]
[395444031,1764691847768,-1823.01989928,0.00015342,2]
[395444033,1764691847778,-2000.0,0.00015342,2]
[395444035,1764691847792,-2000.0,0.00015342,2]
[395444037,1764691847806,-150.0,0.00015408,2]
[395444039,1764691847817,-2500.0,0.00015464,2]
[395444041,1764691847827,-151.0,0.000155,2]
[395444043,1764691847839,-209.40437684,0.00015563,2]
[395444044,1764691847849,-560.0,0.0001589,2]
[395444046,1764691847858,-500.0,0.0001589,2]
[395444048,1764691847868,-151.26995496,0.0001589,2]
[395444050,1764691847878,-2500.0,0.0001589,2]
[395444052,1764691847888,-150.0,0.00016,2]
[395444054,1764691847898,-3000.0,0.00016012,2]
[395444057,1764691847911,-538.19542636,0.00016097,2]
[395444058,1764691847927,-235.65190436,0.00016103,2]
[395444060,1764691847937,-217.15233878,0.00016111,2]
[395444062,1764691847947,-150.0,0.00016142,2]
[395444064,1764691847956,-2000.0,0.00016146,7]
[395444066,1764691847966,-1600.0,0.00016164,2]
[395444068,1764691847976,-3740.71162587,0.00016272,2]
[395444070,1764691847985,-151.0,0.000163,2]
[395444072,1764691847994,-589.76189107,0.00016438,2]
[395444073,1764691848004,-166.2,0.00016438,2]
[395444075,1764691848013,-660.0,0.00016438,2]
[395444077,1764691848023,-500.0,0.00016438,2]
[395444079,1764691848032,-2501.18504046,0.00016438,2]
[395444081,1764691848042,-3500.0,0.0001656,2]
[395444083,1764691848051,-225.18697532,0.00016659,2]
[395444085,1764691848060,-166.2,0.00016712,2]
[395444087,1764691848069,-2000.0,0.00016839,7]
[395444089,1764691848079,-150.0,0.00016876,2]
[395444091,1764691848089,-166.2,0.00016986,2]
[395444092,1764691848099,-760.0,0.00016986,2]
[395444094,1764691848109,-500.0,0.00016986,2]
[395444096,1764691848119,-352.0,0.00017052,2]
[395444098,1764691848129,-4000.0,0.00017108,2]
[395444100,1764691848139,-416.0,0.00017194,2]
[395444102,1764691848149,-151.0,0.000172,2]
[395444104,1764691848159,-233.51889341,0.00017207,2]
[395444123,1764691848333,-166.2,0.0001726,2]
[395444125,1764691848347,-2400.07577634,0.0001726,2]
[395444127,1764691848357,-494.0,0.00017362,2]
[395444129,1764691848367,-2000.0,0.00017531,7]
[395444131,1764691848377,-166.2,0.00017534,2]
[395444133,1764691848386,-860.0,0.00017534,2]
[395444135,1764691848396,-500.0,0.00017534,2]
[395444137,1764691848405,-150.0,0.00017578,2]
[395444139,1764691848415,-4372.01951048,0.00017656,2]
[395444141,1764691848426,-9151.30319116,0.000177,2]
[395444143,1764691848436,-242.15909246,0.00017755,2]
[395444145,1764691848445,-353.75427879,0.000178,3]
[395444146,1764691848454,-151.0,0.000178,2]
[395444148,1764691848464,-142857.16,0.000178,3]
[395444150,1764691848474,-151.0,0.00017808,2]
[395444152,1764691848484,-166.2,0.00017808,2]
[395444154,1764691848495,-500.0,0.00017808,2]
[395444156,1764691848504,-500.0,0.00017808,2]
[395444158,1764691848513,-500.0,0.00017808,2]
[395444160,1764691848523,-500.0,0.00017808,2]
[395444162,1764691848532,-500.0,0.00017808,2]
[395444164,1764691848541,-500.0,0.00017808,2]
[395444166,1764691848551,-500.0,0.00017808,2]
[395444168,1764691848560,-500.0,0.00017808,2]
[395444170,1764691848570,-500.0,0.00017808,2]
[395444172,1764691848579,-384.1560701,0.00017808,2]
[395444174,1764691848588,-152.00988772,0.00017945,2]
[395444176,1764691848597,-100000.0,0.0001799,2]
[395444178,1764691848607,-319.79374115,0.00018,2]
[395444180,1764691848616,-365.47856131,0.00018,2]
[395444181,1764691848626,-537.81393844,0.00018,2]
[395444183,1764691848635,-968.0650892,0.00018,2]
[395444185,1764691848645,-1721.00460302,0.00018,2]
[395444187,1764691848655,-371.08474993,0.00018,2]
[395444189,1764691848665,-667.95254987,0.00018,2]
[395444191,1764691848675,-1187.47119977,0.00018,2]
[395444193,1764691848684,-420.16444403,0.00018,2]
[395444195,1764691848693,-756.29599925,0.00018,2]
[395444197,1764691848703,-1344.52622089,0.00018,2]
[395444199,1764691848712,-197.6,0.00018,2]
[395444201,1764691848721,-197.6,0.00018,2]
[395444203,1764691848730,-197.6,0.00018,2]
[395444205,1764691848739,-1433.085042,0.00018,2]
[395444207,1764691848748,-166.2,0.00018082,2]
[395444209,1764691848758,-960.0,0.00018082,2]
[395444211,1764691848768,-500.0,0.00018082,2]
[395444212,1764691848777,-594.51820354,0.00018097,2]
[395444214,1764691848787,-151.0,0.000181,2]
[395444216,1764691848797,-35714.28,0.000182,3]
[395444218,1764691848806,-151.0,0.000182,2]
[395444220,1764691848815,-151.0,0.000182,2]
[395444222,1764691848824,-151.0,0.000182,2]
[395444224,1764691848834,-288.207201,0.000182,2]
[395444226,1764691848844,-2000.0,0.00018224,7]
[395444228,1764691848854,-307.8398572,0.00018247,2]
[395444230,1764691848864,-353.75427879,0.000183,3]
[395444232,1764691848875,-251.11897888,0.00018303,2]
[395444233,1764691848884,-1300.0,0.00018356,7]
[395444234,1764691848893,-166.2,0.00018356,2]
[395444235,1764691848902,-353.75427879,0.0001836,7]
[395444236,1764691848911,-343.847925,0.00018493,2]
[395444237,1764691848920,-1000.0,0.000185,2]
[395444238,1764691848930,-166.2,0.0001863,2]
[395444239,1764691848939,-322.15860243,0.0001863,3]
[395444240,1764691848948,-209.55374114,0.0001863,3]
[395444241,1764691848957,-1060.0,0.0001863,2]
[395444242,1764691848967,-303.70669465,0.0001863,3]
[395444243,1764691848975,-1213.61195182,0.0001863,3]
[395444244,1764691848984,-237.2693331,0.0001863,3]
[395444245,1764691848994,-500.0,0.0001863,2]
[395444246,1764691849003,-635.0,0.00018735,3]
[395444247,1764691849012,-260.4103811,0.00018851,2]
[395444248,1764691849021,-353.75427879,0.000189,3]
[395444250,1764691849031,-302.78807257,0.000189,2]
[395444251,1764691849040,-71428.56,0.000189,3]
[395444253,1764691849049,-302.8183302,0.000189,2]
[395444256,1764691849060,-166.2,0.00018904,2]
[395444258,1764691849070,-2000.0,0.00018917,7]
[395444260,1764691849079,-750.0,0.00018954,3]
[395444262,1764691849088,-14141.0,0.00019,2]
[395444264,1764691849099,-9178.52273783,0.00019,2]
[395444266,1764691849108,-500.0,0.00019,7]
[395444268,1764691849118,-500.0,0.00019,7]
[395444270,1764691849128,-500.0,0.00019,7]
[395444272,1764691849137,-500.0,0.00019,7]
[395444274,1764691849146,-500.0,0.00019,7]
[395444276,1764691849155,-500.0,0.00019,7]
[395444278,1764691849165,-500.0,0.00019,7]
[395444280,1764691849175,-500.0,0.00019,7]
[395444282,1764691849186,-500.0,0.00019,7]
[395444284,1764691849196,-500.0,0.00019,7]
[395444286,1764691849205,-500.0,0.00019,7]
[395444288,1764691849214,-500.0,0.00019,7]
[395444290,1764691849224,-500.0,0.00019,7]
[395444292,1764691849233,-500.0,0.00019,7]
[395444294,1764691849242,-500.0,0.00019,7]
[395444296,1764691849252,-500.0,0.00019,7]
[395444298,1764691849263,-500.0,0.00019,7]
[395444300,1764691849272,-500.0,0.00019,7]
[395444302,1764691849282,-500.0,0.00019,7]
[395444304,1764691849291,-500.0,0.00019,7]
[395444306,1764691849301,-500.0,0.00019,7]
[395444308,1764691849311,-500.0,0.00019,7]
[395444310,1764691849320,-500.0,0.00019,7]
[395444312,1764691849329,-500.0,0.00019,7]
[395444314,1764691849339,-500.0,0.00019,7]
[395444316,1764691849352,-500.0,0.00019,7]
[395444318,1764691849362,-500.0,0.00019,7]
[395444320,1764691849371,-500.0,0.00019,7]
[395444322,1764691849382,-500.0,0.00019,7]
[395444324,1764691849391,-500.0,0.00019,7]
[395444326,1764691849400,-500.0,0.00019,7]
[395444328,1764691849409,-500.0,0.00019,7]
[395444330,1764691849419,-500.0,0.00019,7]
[395444332,1764691849429,-500.0,0.00019,7]
[395444334,1764691849438,-500.0,0.00019,7]
[395444336,1764691849447,-500.0,0.00019,7]
[395444338,1764691849456,-500.0,0.00019,7]
[395444340,1764691849466,-500.0,0.00019,7]
[395444342,1764691849476,-500.0,0.00019,7]
[395444344,1764691849485,-500.0,0.00019,7]
[395444346,1764691849494,-500.0,0.00019,7]
[395444348,1764691849504,-500.0,0.00019,7]
[395444350,1764691849514,-500.0,0.00019,7]
[395444352,1764691849524,-500.0,0.00019,7]
[395444354,1764691849534,-500.0,0.00019,7]
[395444356,1764691849543,-500.0,0.00019,7]
[395444358,1764691849554,-500.0,0.00019,7]
[395444360,1764691849564,-500.0,0.00019,7]
[395444362,1764691849574,-500.0,0.00019,7]
[395444364,1764691849583,-500.0,0.00019,7]
[395444366,1764691849593,-500.0,0.00019,7]
[395444368,1764691849603,-500.0,0.00019,7]
[395444370,1764691849612,-500.0,0.00019,7]
[395444372,1764691849621,-500.0,0.00019,7]
[395444374,1764691849631,-500.0,0.00019,7]
[395444376,1764691849641,-344.77,0.00019,7]
[395444378,1764691849651,-2000.0,0.00019,2]
[395444380,1764691849662,-500.0,0.00019,7]
[395444383,1764691849672,-500.0,0.00019,7]
[395444384,1764691849682,-500.0,0.00019,7]
[395444386,1764691849691,-500.0,0.00019,7]
[395444389,1764691849702,-500.0,0.00019,7]
[395444391,1764691849711,-500.0,0.00019,7]
[395444392,1764691849720,-500.0,0.00019,7]
[395444394,1764691849729,-500.0,0.00019,7]
[395444397,1764691849739,-400.79,0.00019,7]
[395444399,1764691849748,-1880.4,0.00019,2]
[395444400,1764691849758,-353.75427879,0.00019,7]
[395444402,1764691849768,-532.987456,0.00019,2]
[395444404,1764691849777,-532.987456,0.00019,2]
[395444406,1764691849786,-532.987456,0.00019,2]
[395444408,1764691849795,-532.987456,0.00019,2]
[395444410,1764691849804,-151.0,0.00019,2]
[395444412,1764691849813,-529.959063,0.00019,2]
[395444414,1764691849822,-529.959063,0.00019,2]
[395444416,1764691849831,-529.959063,0.00019,2]
[395444418,1764691849843,-529.959063,0.00019,2]
[395444420,1764691849852,-151.0,0.00019,2]
[395444422,1764691849862,-151.0,0.00019,2]
[395444424,1764691849872,-178.889848,0.00019,2]
[395444426,1764691849882,-178.889848,0.00019,2]
[395444428,1764691849891,-178.889848,0.00019,2]
[395444430,1764691849901,-178.889848,0.00019,2]
[395444432,1764691849911,-1000.0,0.00019,5]
[395444434,1764691849921,-151.0,0.00019,2]
[395444436,1764691849930,-151.0,0.00019,2]
[395444438,1764691849939,-151.0,0.00019,2]
[395444440,1764691849948,-1000.0,0.00019,2]
[395444442,1764691849958,-151.0,0.00019,2]
[395444444,1764691849968,-500.0,0.00019,7]
[395444446,1764691849978,-500.0,0.00019,7]
[395444449,1764691849988,-2247.284516,0.00019,2]
[395444451,1764691849998,-232.09197705,0.00019078,2]
[395444453,1764691850008,-302.78807257,0.00019089,2]
[395444454,1764691850018,-302.8183302,0.00019089,2]
[395444457,1764691850028,-500.0,0.000191,2]
[395444458,1764691850038,-500.0,0.000191,2]
[395444460,1764691850048,-500.0,0.000191,5]
[395444462,1764691850057,-502.0753605,0.000191,2]
[395444464,1764691850067,-500.0,0.000191,2]
[395444467,1764691850078,-500.0,0.000191,2]
[395444469,1764691850088,-500.0,0.000191,5]
[395444471,1764691850098,-500.0,0.000191,2]
[395444473,1764691850108,-500.0,0.000191,2]
[395444474,1764691850118,-518.52189806,0.000191,2]
[395444476,1764691850127,-500.0,0.000191,5]
[395444478,1764691850137,-500.0,0.000191,2]
[395444480,1764691850147,-500.0,0.000191,2]
[395444483,1764691850159,-500.0,0.000191,2]
[395444485,1764691850169,-500.0,0.000191,2]
[395444487,1764691850178,-500.0,0.000191,5]
[395444489,1764691850187,-500.0,0.000191,2]
[395444491,1764691850198,-500.0,0.000191,2]
[395444493,1764691850208,-500.0,0.000191,5]
[395444495,1764691850217,-500.0,0.000191,2]
[395444497,1764691850227,-500.0,0.000191,2]
[395444499,1764691850236,-500.0,0.000191,2]
[395444501,1764691850247,-38000.0,0.00019178,3]
[395444503,1764691850256,-38000.0,0.00019178,3]
[395444505,1764691850266,-38000.0,0.00019178,3]
[395444507,1764691850277,-150.0,0.00019178,2]
[395444509,1764691850287,-300.0,0.00019178,2]
[395444511,1764691850296,-450.0,0.00019178,2]
[395444513,1764691850306,-600.0,0.00019178,2]
[395444515,1764691850317,-750.0,0.00019178,2]
[395444517,1764691850327,-823.09561454,0.00019178,2]
[395444519,1764691850341,-38000.0,0.00019178,3]
[395444521,1764691850351,-532.987456,0.00019178,2]
[395444523,1764691850361,-532.987456,0.00019178,2]
[395444525,1764691850371,-532.987456,0.00019178,2]
[395444528,1764691850385,-532.987456,0.00019178,2]
[395444530,1764691850396,-166.2,0.00019178,2]
[395444532,1764691850405,-529.959063,0.00019178,2]
[395444534,1764691850415,-529.959063,0.00019178,2]
[395444536,1764691850426,-529.959063,0.00019178,2]
[395444538,1764691850436,-529.959063,0.00019178,2]
[395444540,1764691850446,-156.548569,0.00019178,2]
[395444542,1764691850456,-151.0,0.00019178,2]
[395444544,1764691850466,-151.0,0.00019178,2]
[395444546,1764691850475,-178.889848,0.00019178,2]
[395444548,1764691850485,-178.889848,0.00019178,2]
[395444550,1764691850494,-178.889848,0.00019178,2]
[395444552,1764691850503,-178.889848,0.00019178,2]
[395444554,1764691850516,-1160.0,0.00019178,2]
[395444556,1764691850526,-151.0,0.00019178,2]
[395444558,1764691850536,-151.0,0.00019178,2]
[395444560,1764691850546,-151.0,0.00019178,2]
[395444562,1764691850555,-151.0,0.00019178,2]
[395444564,1764691850564,-310.67023593,0.00019178,2]
[395444566,1764691850574,-151.0,0.00019178,2]
[395444568,1764691850584,-2000.00665975,0.00019178,2]
[395444570,1764691850594,-2030.851019,0.00019178,2]
[395444572,1764691850604,-2030.851019,0.00019178,2]
[395444574,1764691850613,-2030.851019,0.00019178,2]
[395444576,1764691850622,-2030.851019,0.00019178,2]
[395444578,1764691850631,-2030.851019,0.00019178,2]
[395444595,1764691850776,-2030.851019,0.00019178,2]
[395444597,1764691850786,-2030.851019,0.00019178,2]
[395444599,1764691850796,-2030.851019,0.00019178,2]
[395444601,1764691850806,-150.0,0.00019178,2]
[395444603,1764691850816,-150.0,0.00019178,2]
[395444605,1764691850825,-500.0,0.00019178,2]
[395444607,1764691850835,-2580.41,0.000192,2]
[395444609,1764691850848,-3300.57,0.000192,2]
[395444611,1764691850858,-3808.79,0.000192,2]
[395444613,1764691850868,-1605.53,0.000192,2]
[395444615,1764691850877,-3106.23397791,0.00019205,5]
[395444617,1764691850888,-184.2872394,0.00019213,2]
[395444619,1764691850898,-267.37796211,0.00019233,2]
[395444622,1764691850909,-302.42532561,0.00019278,2]
[395444624,1764691850919,-302.8183302,0.00019278,2]
[395444625,1764691850931,-151.19674666,0.00019288,2]
[395444627,1764691850940,-300.0,0.00019315,2]
[395444630,1764691850951,-270.0455652,0.00019399,2]
[395444632,1764691850961,-600.0,0.000194,2]
[395444633,1764691850970,-1141.80105695,0.000194,2]
[395444636,1764691850980,-600.0,0.000194,2]
[395444638,1764691850991,-600.0,0.000194,2]
[395444639,1764691851001,-1300.0,0.00019452,7]
[395444641,1764691851010,-166.2,0.00019452,2]
[395444643,1764691851021,-450.0,0.00019452,2]
[395444645,1764691851031,-302.8183302,0.00019467,2]
[395444649,1764691851052,-1000.0,0.000195,2]
[395444651,1764691851063,-500.0,0.0001951,7]
[395444653,1764691851074,-600.0,0.00019589,2]
[395444655,1764691851083,-532.987456,0.00019599,2]
[395444657,1764691851095,-532.987456,0.00019599,2]
[395444659,1764691851104,-532.987456,0.00019599,2]
[395444661,1764691851115,-532.987456,0.00019599,2]
[395444663,1764691851124,-232.09197705,0.00019603,2]